[Event "Late-Titled-Tuesday-Blitz-May-14-2024"]
[Site "Chess.com"]
[Date "2024.05.14"]
[Round "10"]
[White "th3d4rkness"]
[Black "balack95"]
[Result "1-0"]
[WhiteElo "2190"]
[BlackElo "2451"]
[TimeControl "180+1"]
[EndTime "15:54:37 PDT"]
[Termination "th3d4rkness won on time"]

1. e4 {[%clk 0:03:00.9]} 1... d5 {[%clk 0:02:59.1]} 2. exd5 {[%clk 0:02:59.4]}
2... Qxd5 {[%clk 0:03:00]} 3. Nc3 {[%clk 0:02:59.8]} 3... Qe5+ {[%clk
0:03:00.4]} 4. Be2 {[%clk 0:02:57.9]} 4... c6 {[%clk 0:03:00.5]} 5. Nf3 {[%clk
0:02:57.9]} 5... Qc7 {[%clk 0:03:01.4]} 6. O-O {[%clk 0:02:55.6]} 6... Nf6
{[%clk 0:03:00.8]} 7. d3 {[%clk 0:02:55.8]} 7... Bg4 {[%clk 0:03:01.5]} 8. Bg5
{[%clk 0:02:52.8]} 8... Nbd7 {[%clk 0:03:01]} 9. Bh4 {[%clk 0:02:51.7]} 9... e6
{[%clk 0:03:01.5]} 10. Bg3 {[%clk 0:02:51.9]} 10... Bd6 {[%clk 0:03:02.1]} 11.
Bxd6 {[%clk 0:02:44.4]} 11... Qxd6 {[%clk 0:03:03]} 12. Ne4 {[%clk 0:02:44.6]}
12... Nxe4 {[%clk 0:03:02.8]} 13. dxe4 {[%clk 0:02:44.9]} 13... Qxd1 {[%clk
0:03:02.6]} 14. Rfxd1 {[%clk 0:02:45]} 14... f6 {[%clk 0:02:51.4]} 15. h3 {[%clk
0:02:43.1]} 15... Bh5 {[%clk 0:02:50.4]} 16. Nd4 {[%clk 0:02:41.6]} 16... Bf7
{[%clk 0:02:48.3]} 17. Bg4 {[%clk 0:02:38.5]} 17... Ke7 {[%clk 0:02:48.3]} 18.
Nb3 {[%clk 0:02:31.4]} 18... h5 {[%clk 0:02:46.7]} 19. Be2 {[%clk 0:02:30.8]}
19... b6 {[%clk 0:02:43]} 20. Rd2 {[%clk 0:02:30.7]} 20... g5 {[%clk 0:02:37]}
21. Nd4 {[%clk 0:02:28.5]} 21... Ne5 {[%clk 0:02:36.2]} 22. Rad1 {[%clk
0:02:26.1]} 22... Bg6 {[%clk 0:02:30.8]} 23. f3 {[%clk 0:02:25.3]} 23... Rhd8
{[%clk 0:02:25.8]} 24. Nb3 {[%clk 0:02:20.9]} 24... Rxd2 {[%clk 0:02:22.4]} 25.
Rxd2 {[%clk 0:02:20.6]} 25... a5 {[%clk 0:02:22.9]} 26. Kf2 {[%clk 0:02:15]}
26... a4 {[%clk 0:02:22.8]} 27. Nc1 {[%clk 0:02:15.1]} 27... h4 {[%clk
0:02:16.8]} 28. Ke3 {[%clk 0:02:12.8]} 28... c5 {[%clk 0:02:11.7]} 29. b3 {[%clk
0:02:10.4]} 29... axb3 {[%clk 0:02:07.8]} 30. cxb3 {[%clk 0:02:10.1]} 30... Be8
{[%clk 0:02:06.2]} 31. Kf2 {[%clk 0:02:06]} 31... Bc6 {[%clk 0:02:01.9]} 32. a4
{[%clk 0:02:04.8]} 32... Ng6 {[%clk 0:02:01.5]} 33. Na2 {[%clk 0:01:58.7]} 33...
Nf4 {[%clk 0:01:54.2]} 34. Bf1 {[%clk 0:01:58.6]} 34... Ng6 {[%clk 0:01:45.6]}
35. Nc3 {[%clk 0:01:57.2]} 35... Ne5 {[%clk 0:01:44.7]} 36. Bb5 {[%clk
0:01:55.3]} 36... Bb7 {[%clk 0:01:35.9]} 37. Nd1 {[%clk 0:01:51.3]} 37... Rc8
{[%clk 0:01:25.6]} 38. Ne3 {[%clk 0:01:50.8]} 38... Bc6 {[%clk 0:01:18.6]} 39.
Ba6 {[%clk 0:01:45]} 39... Ra8 {[%clk 0:01:14.6]} 40. Be2 {[%clk 0:01:41.3]}
40... Ng6 {[%clk 0:00:59.9]} 41. Nc4 {[%clk 0:01:39.6]} 41... b5 {[%clk
0:00:57.1]} 42. Nb6 {[%clk 0:01:31.5]} 42... Rb8 {[%clk 0:00:52.4]} 43. a5
{[%clk 0:01:25.6]} 43... Ne5 {[%clk 0:00:47.4]} 44. Bf1 {[%clk 0:01:23]} 44...
Rb7 {[%clk 0:00:40]} 45. Rc2 {[%clk 0:01:13.6]} 45... c4 {[%clk 0:00:20.4]} 46.
bxc4 {[%clk 0:01:11.5]} 46... b4 {[%clk 0:00:20.9]} 47. c5 {[%clk 0:01:07.4]}
47... Bd7 {[%clk 0:00:20.3]} 48. a6 {[%clk 0:01:07]} 48... Rc7 {[%clk
0:00:19.6]} 49. Nxd7 {[%clk 0:01:01.9]} 49... Nxd7 {[%clk 0:00:20]} 50. c6
{[%clk 0:01:01.2]} 50... Nb8 {[%clk 0:00:20.3]} 51. Bb5 {[%clk 0:01:00.6]} 51...
Kd6 {[%clk 0:00:20.3]} 52. Ke3 {[%clk 0:00:58.6]} 52... e5 {[%clk 0:00:18]} 53.
Kd3 {[%clk 0:00:58.1]} 53... Re7 {[%clk 0:00:15.2]} 54. Kc4 {[%clk 0:00:55.3]}
54... Ra7 {[%clk 0:00:11.4]} 55. Kxb4 {[%clk 0:00:55]} 55... Nxa6+ {[%clk
0:00:12]} 56. Bxa6 {[%clk 0:00:55.1]} 56... Kc7 {[%clk 0:00:08.6]} 57. Kb5
{[%clk 0:00:54.8]} 57... Ra8 {[%clk 0:00:08.4]} 58. Rd2 {[%clk 0:00:53]} 58...
Rb8+ {[%clk 0:00:07]} 59. Bb7 {[%clk 0:00:53.3]} 59... Rh8 {[%clk 0:00:02.9]}
60. Rd7+ {[%clk 0:00:53]} 60... Kb8 {[%clk 0:00:03.8]} 61. Kb6 {[%clk 0:00:53]}
1-0

[Event "Late-Titled-Tuesday-Blitz-May-14-2024"]
[Site "Chess.com"]
[Date "2024.05.14"]
[Round "10"]
[White "slidingknight2775"]
[Black "David_ATM"]
[Result "1-0"]
[WhiteElo "2595"]
[BlackElo "2447"]
[TimeControl "180+1"]
[EndTime "15:54:38 PDT"]
[Termination "slidingknight2775 won on time"]

1. d4 {[%clk 0:03:00.9]} 1... d5 {[%clk 0:02:59.8]} 2. c4 {[%clk 0:03:01.1]}
2... c6 {[%clk 0:03:00.7]} 3. Nf3 {[%clk 0:03:01.7]} 3... Nf6 {[%clk 0:03:00.9]}
4. g3 {[%clk 0:03:02.3]} 4... Bf5 {[%clk 0:03:01.4]} 5. Nc3 {[%clk 0:03:02.8]}
5... e6 {[%clk 0:03:01.8]} 6. Nh4 {[%clk 0:03:03.4]} 6... Be4 {[%clk 0:03:02]}
7. f3 {[%clk 0:03:03.5]} 7... Bg6 {[%clk 0:03:01.9]} 8. Qb3 {[%clk 0:03:03.2]}
8... Qb6 {[%clk 0:03:01.6]} 9. c5 {[%clk 0:03:03.6]} 9... Qxb3 {[%clk
0:03:01.7]} 10. axb3 {[%clk 0:03:04.5]} 10... Nbd7 {[%clk 0:02:58.3]} 11. Nxg6
{[%clk 0:03:03.9]} 11... hxg6 {[%clk 0:02:58.2]} 12. b4 {[%clk 0:03:04.6]} 12...
e5 {[%clk 0:02:49.6]} 13. e3 {[%clk 0:03:04.5]} 13... Be7 {[%clk 0:02:47.4]} 14.
b5 {[%clk 0:03:04.3]} 14... O-O {[%clk 0:02:46.9]} 15. b4 {[%clk 0:02:54.1]}
15... Ne8 {[%clk 0:02:43.2]} 16. bxc6 {[%clk 0:02:52.2]} 16... bxc6 {[%clk
0:02:44.1]} 17. b5 {[%clk 0:02:48.8]} 17... exd4 {[%clk 0:02:29.5]} 18. exd4
{[%clk 0:02:46.6]} 18... Bf6 {[%clk 0:02:29.7]} 19. Be3 {[%clk 0:02:46.2]} 19...
Nxc5 {[%clk 0:02:29.4]} 20. bxc6 {[%clk 0:02:25.8]} 20... Nb3 {[%clk 0:02:24.9]}
21. Ra4 {[%clk 0:02:17.9]} 21... Nc7 {[%clk 0:02:23.3]} 22. Kf2 {[%clk
0:02:14.6]} 22... Nc5 {[%clk 0:02:17.2]} 23. dxc5 {[%clk 0:01:56.4]} 23... Bxc3
{[%clk 0:02:16.4]} 24. Bh3 {[%clk 0:01:51.4]} 24... a5 {[%clk 0:02:14.4]} 25.
Bf4 {[%clk 0:01:42.7]} 25... Ne6 {[%clk 0:01:58.7]} 26. Bxe6 {[%clk 0:01:21.7]}
26... fxe6 {[%clk 0:01:59.6]} 27. Bd6 {[%clk 0:01:22.5]} 27... Rfc8 {[%clk
0:01:47.2]} 28. c7 {[%clk 0:01:22.6]} 28... Ra7 {[%clk 0:01:32.2]} 29. Rc1
{[%clk 0:00:57.3]} 29... Bb4 {[%clk 0:01:27.9]} 30. Ke2 {[%clk 0:00:43.5]} 30...
Raxc7 {[%clk 0:01:27.5]} 31. Bxc7 {[%clk 0:00:43.6]} 31... Rxc7 {[%clk
0:01:28.4]} 32. c6 {[%clk 0:00:44.5]} 32... Kf7 {[%clk 0:01:23.8]} 33. Kd3
{[%clk 0:00:40.8]} 33... Ke7 {[%clk 0:01:24.2]} 34. Ra2 {[%clk 0:00:35.6]} 34...
Kd6 {[%clk 0:01:24.2]} 35. Re2 {[%clk 0:00:36.3]} 35... e5 {[%clk 0:00:30.9]}
36. h4 {[%clk 0:00:17.4]} 36... Bc5 {[%clk 0:00:31.2]} 37. Ra2 {[%clk
0:00:12.3]} 37... Bb4 {[%clk 0:00:29.5]} 38. Rac2 {[%clk 0:00:11.1]} 38... Ke6
{[%clk 0:00:26.8]} 39. g4 {[%clk 0:00:07.9]} 39... Kd6 {[%clk 0:00:27.1]} 40. h5
{[%clk 0:00:06.8]} 40... gxh5 {[%clk 0:00:26.8]} 41. gxh5 {[%clk 0:00:07.7]}
41... Ba3 {[%clk 0:00:19.4]} 42. Rg1 {[%clk 0:00:07.7]} 42... Re7 {[%clk
0:00:02.4]} 43. c7 {[%clk 0:00:07.9]} 1-0

[Event "Late-Titled-Tuesday-Blitz-May-14-2024"]
[Site "Chess.com"]
[Date "2024.05.14"]
[Round "10"]
[White "RantomOpening"]
[Black "FredddieCroderg"]
[Result "1-0"]
[WhiteElo "2592"]
[BlackElo "2345"]
[TimeControl "180+1"]
[EndTime "15:54:40 PDT"]
[Termination "RantomOpening won on time"]

1. c4 {[%clk 0:03:00]} 1... a5 {[%clk 0:02:46.2]} 2. g3 {[%clk 0:02:54.6]} 2...
Na6 {[%clk 0:02:45.6]} 3. Bg2 {[%clk 0:02:54.7]} 3... h5 {[%clk 0:02:46]} 4. Nf3
{[%clk 0:02:53.7]} 4... d6 {[%clk 0:02:43.4]} 5. d4 {[%clk 0:02:53.4]} 5... Bd7
{[%clk 0:02:37]} 6. Nc3 {[%clk 0:02:53.4]} 6... Qc8 {[%clk 0:02:36.8]} 7. h4
{[%clk 0:02:52.5]} 7... Nh6 {[%clk 0:02:34.4]} 8. e4 {[%clk 0:02:51.3]} 8... f6
{[%clk 0:02:32.4]} 9. e5 {[%clk 0:02:49.8]} 9... Bf5 {[%clk 0:02:28.5]} 10. Bf4
{[%clk 0:02:37.3]} 10... Ng4 {[%clk 0:02:25.2]} 11. a3 {[%clk 0:02:34.6]} 11...
dxe5 {[%clk 0:02:19.5]} 12. dxe5 {[%clk 0:02:35.5]} 12... Nc5 {[%clk 0:02:17.6]}
13. O-O {[%clk 0:02:31.4]} 13... Nd3 {[%clk 0:02:14.8]} 14. exf6 {[%clk
0:02:30.4]} 14... gxf6 {[%clk 0:02:05.7]} 15. Nd5 {[%clk 0:02:25.2]} 15... e5
{[%clk 0:01:53.4]} 16. Qa4+ {[%clk 0:02:02.4]} 16... Kf7 {[%clk 0:01:42]} 17.
Be3 {[%clk 0:02:02]} 17... Nxe3 {[%clk 0:01:27.8]} 18. Nxe3 {[%clk 0:01:49.4]}
18... Bg6 {[%clk 0:01:15.8]} 19. Kh2 {[%clk 0:01:37.6]} 19... Bc5 {[%clk
0:01:07.4]} 20. Bh3 {[%clk 0:01:29.9]} 20... Qe8 {[%clk 0:01:06.1]} 21. Bd7
{[%clk 0:01:27.9]} 21... Qe7 {[%clk 0:00:52.8]} 22. Nd5 {[%clk 0:01:27]} 22...
Qd6 {[%clk 0:00:44.8]} 23. Bh3 {[%clk 0:01:17.9]} 23... Nxb2 {[%clk 0:00:37.7]}
24. Qb3 {[%clk 0:01:14.9]} 24... Nd3 {[%clk 0:00:29.9]} 25. Rad1 {[%clk
0:01:13.6]} 25... e4 {[%clk 0:00:21.9]} 26. Nf4 {[%clk 0:00:42.3]} 26... a4
{[%clk 0:00:14.6]} 27. Qc3 {[%clk 0:00:20.6]} 27... Qe7 {[%clk 0:00:08]} 28.
Be6+ {[%clk 0:00:19.6]} 28... Kg7 {[%clk 0:00:06.1]} 29. Nxg6 {[%clk 0:00:08.6]}
29... Kxg6 {[%clk 0:00:04.9]} 30. Bd5 {[%clk 0:00:04.7]} 30... f5 {[%clk
0:00:03.5]} 31. Nd4 {[%clk 0:00:03.2]} 31... Rad8 {[%clk 0:00:02.2]} 32. Ne6
{[%clk 0:00:03.4]} 32... Rd6 {[%clk 0:00:01.8]} 33. Rxd3 {[%clk 0:00:03.7]}
33... exd3 {[%clk 0:00:01.6]} 34. Qxh8 {[%clk 0:00:04]} 34... Rxe6 {[%clk
0:00:00.9]} 35. Qg8+ {[%clk 0:00:02.7]} 35... Kf6 {[%clk 0:00:01.4]} 36. Qg5+
{[%clk 0:00:02.4]} 36... Ke5 {[%clk 0:00:01.2]} 37. Re1+ {[%clk 0:00:01.9]} 1-0

[Event "Late-Titled-Tuesday-Blitz-May-14-2024"]
[Site "Chess.com"]
[Date "2024.05.14"]
[Round "10"]
[White "Cherepov_Alexej"]
[Black "Dexter_Dyke"]
[Result "0-1"]
[WhiteElo "2431"]
[BlackElo "2601"]
[TimeControl "180+1"]
[EndTime "15:54:44 PDT"]
[Termination "Dexter_Dyke won on time"]

1. d4 {[%clk 0:03:00.9]} 1... f6 {[%clk 0:02:59.6]} 2. e4 {[%clk 0:02:59.2]}
2... e6 {[%clk 0:02:56.4]} 3. Nf3 {[%clk 0:02:56.9]} 3... d5 {[%clk 0:02:56.3]}
4. Bd3 {[%clk 0:02:36.3]} 4... c5 {[%clk 0:02:52.3]} 5. exd5 {[%clk 0:02:28.1]}
5... exd5 {[%clk 0:02:48.4]} 6. dxc5 {[%clk 0:02:27.9]} 6... Bxc5 {[%clk
0:02:48]} 7. Nc3 {[%clk 0:02:21.6]} 7... Ne7 {[%clk 0:02:48.1]} 8. O-O {[%clk
0:02:20.1]} 8... O-O {[%clk 0:02:48.3]} 9. h3 {[%clk 0:02:19.3]} 9... Nbc6
{[%clk 0:02:48.5]} 10. Re1 {[%clk 0:02:17.5]} 10... Qb6 {[%clk 0:02:41.8]} 11.
Re2 {[%clk 0:01:55.2]} 11... Qc7 {[%clk 0:02:35.4]} 12. Be3 {[%clk 0:01:25.7]}
12... Bxe3 {[%clk 0:02:32.6]} 13. Rxe3 {[%clk 0:01:25.6]} 13... Kh8 {[%clk
0:02:29.1]} 14. Nb5 {[%clk 0:01:17.3]} 14... Qf4 {[%clk 0:02:22.1]} 15. Nbd4
{[%clk 0:01:09.4]} 15... Ng6 {[%clk 0:02:06.7]} 16. Ne6 {[%clk 0:00:56.4]} 16...
Bxe6 {[%clk 0:02:05.9]} 17. Rxe6 {[%clk 0:00:57.3]} 17... Nge5 {[%clk
0:01:59.3]} 18. Nxe5 {[%clk 0:00:47.3]} 18... fxe5 {[%clk 0:01:58.1]} 19. f3
{[%clk 0:00:27.4]} 19... e4 {[%clk 0:01:30.4]} 20. fxe4 {[%clk 0:00:24.5]} 20...
Qf2+ {[%clk 0:01:30.4]} 21. Kh1 {[%clk 0:00:24.5]} 21... Nd4 {[%clk 0:01:30.4]}
22. Re7 {[%clk 0:00:19.9]} 22... Nf3 {[%clk 0:00:44.1]} 23. Be2 {[%clk 0:00:19]}
23... Nh4 {[%clk 0:00:40.2]} 24. Qf1 {[%clk 0:00:14.2]} 24... Qg3 {[%clk
0:00:28.1]} 25. Qg1 {[%clk 0:00:11.8]} 25... Rf2 {[%clk 0:00:26.9]} 26. Bf1
{[%clk 0:00:11.5]} 26... Raf8 {[%clk 0:00:26.4]} 27. exd5 {[%clk 0:00:09.4]}
27... Nf3 {[%clk 0:00:14]} 28. gxf3 {[%clk 0:00:08.9]} 28... Qxf3+ {[%clk
0:00:14.5]} 29. Bg2 {[%clk 0:00:08.3]} 29... Qf4 {[%clk 0:00:15]} 30. Rae1
{[%clk 0:00:07]} 30... h6 {[%clk 0:00:14.5]} 31. Re8 {[%clk 0:00:06.6]} 31...
Kh7 {[%clk 0:00:14.6]} 32. Rxf8 {[%clk 0:00:06.5]} 32... Qxf8 {[%clk 0:00:15.1]}
33. Be4+ {[%clk 0:00:06.1]} 33... Kh8 {[%clk 0:00:15.1]} 34. Qg6 {[%clk
0:00:06.1]} 34... Rf1+ {[%clk 0:00:13.9]} 35. Rxf1 {[%clk 0:00:04.1]} 35...
Qxf1+ {[%clk 0:00:14.8]} 36. Kh2 {[%clk 0:00:04.1]} 36... Qf2+ {[%clk
0:00:15.3]} 37. Bg2 {[%clk 0:00:03]} 37... Qf4+ {[%clk 0:00:15.8]} 38. Qg3
{[%clk 0:00:03]} 38... Qd4 {[%clk 0:00:13.7]} 39. d6 {[%clk 0:00:00.4]} 39...
Qd2 {[%clk 0:00:12.8]} 40. h4 {[%clk 0:00:00.7]} 40... Qd4 {[%clk 0:00:13.7]}
41. c4 {[%clk 0:00:00.6]} 41... g5 {[%clk 0:00:14.4]} 42. hxg5 {[%clk
0:00:00.2]} 42... h5 {[%clk 0:00:14.5]} 43. Qh3 {[%clk 0:00:00.4]} 43... h4
{[%clk 0:00:15.4]} 0-1

[Event "Late-Titled-Tuesday-Blitz-May-14-2024"]
[Site "Chess.com"]
[Date "2024.05.14"]
[Round "10"]
[White "Rsnr"]
[Black "Kira170"]
[Result "1-0"]
[WhiteElo "2913"]
[BlackElo "2765"]
[TimeControl "180+1"]
[EndTime "15:54:47 PDT"]
[Termination "Rsnr won on time"]

1. d4 {[%clk 0:03:00.9]} 1... e6 {[%clk 0:02:56.7]} 2. c4 {[%clk 0:03:00.8]}
2... f5 {[%clk 0:02:56.4]} 3. Nc3 {[%clk 0:03:00.6]} 3... Nf6 {[%clk 0:02:56.5]}
4. Qc2 {[%clk 0:03:00.9]} 4... b6 {[%clk 0:02:47.7]} 5. e3 {[%clk 0:03:00.6]}
5... Bb7 {[%clk 0:02:47.5]} 6. f3 {[%clk 0:03:01.2]} 6... c5 {[%clk 0:02:13.4]}
7. d5 {[%clk 0:02:56.9]} 7... g6 {[%clk 0:01:58.2]} 8. e4 {[%clk 0:02:49.7]}
8... fxe4 {[%clk 0:01:58.2]} 9. fxe4 {[%clk 0:02:50.6]} 9... Bg7 {[%clk
0:01:55.1]} 10. Nf3 {[%clk 0:02:50.7]} 10... O-O {[%clk 0:01:52.1]} 11. Be2
{[%clk 0:02:51]} 11... a6 {[%clk 0:01:32.2]} 12. O-O {[%clk 0:02:46.2]} 12...
Qc7 {[%clk 0:01:32.5]} 13. g3 {[%clk 0:01:52.7]} 13... b5 {[%clk 0:01:31.6]} 14.
cxb5 {[%clk 0:01:39.9]} 14... axb5 {[%clk 0:01:32.5]} 15. Nxb5 {[%clk
0:01:35.9]} 15... Qb6 {[%clk 0:01:32.6]} 16. Nc3 {[%clk 0:01:28.2]} 16... Na6
{[%clk 0:01:32.5]} 17. Bg5 {[%clk 0:01:04.8]} 17... exd5 {[%clk 0:01:22.4]} 18.
exd5 {[%clk 0:01:04.8]} 18... d6 {[%clk 0:01:02]} 19. Bc4 {[%clk 0:01:04.5]}
19... Nb4 {[%clk 0:00:54.7]} 20. Qd2 {[%clk 0:01:04.7]} 20... Ba6 {[%clk
0:00:53.3]} 21. b3 {[%clk 0:00:58.7]} 21... Bxc4 {[%clk 0:00:48.6]} 22. bxc4
{[%clk 0:00:59.6]} 22... Ra3 {[%clk 0:00:42.5]} 23. Rac1 {[%clk 0:00:50.4]}
23... Rxc3 {[%clk 0:00:30]} 24. Qxc3 {[%clk 0:00:51.3]} 24... Nxa2 {[%clk
0:00:25.9]} 25. Qe3 {[%clk 0:00:35]} 25... Nxc1 {[%clk 0:00:26]} 26. Qe6+ {[%clk
0:00:31.7]} 26... Kh8 {[%clk 0:00:25.7]} 27. Rxc1 {[%clk 0:00:32.4]} 27... Ng8
{[%clk 0:00:18.3]} 28. Bf4 {[%clk 0:00:31.5]} 28... Qb2 {[%clk 0:00:16.4]} 29.
Rf1 {[%clk 0:00:31.3]} 29... Rf6 {[%clk 0:00:13.2]} 30. Qe4 {[%clk 0:00:29.3]}
30... h6 {[%clk 0:00:13.3]} 31. h4 {[%clk 0:00:29.1]} 31... Qb3 {[%clk
0:00:11.2]} 32. Kg2 {[%clk 0:00:28.7]} 32... Qb2+ {[%clk 0:00:10.1]} 33. Rf2
{[%clk 0:00:28.8]} 33... Qb3 {[%clk 0:00:11]} 34. Re2 {[%clk 0:00:24.9]} 34...
Qc3 {[%clk 0:00:10]} 35. g4 {[%clk 0:00:21.2]} 35... Qa5 {[%clk 0:00:05.7]} 36.
g5 {[%clk 0:00:21.4]} 36... Rf5 {[%clk 0:00:05.3]} 37. gxh6 {[%clk 0:00:17.5]}
37... Nxh6 {[%clk 0:00:05.1]} 38. Ng5 {[%clk 0:00:12.8]} 38... Rf8 {[%clk
0:00:02.4]} 39. Ne6 {[%clk 0:00:12.6]} 39... Nf5 {[%clk 0:00:01.4]} 40. Nxf8
{[%clk 0:00:09.7]} 40... Bxf8 {[%clk 0:00:02.3]} 41. h5 {[%clk 0:00:08.3]} 41...
Qd8 {[%clk 0:00:00.4]} 42. hxg6 {[%clk 0:00:05.6]} 42... Qf6 {[%clk 0:00:00.8]}
43. Qe6 {[%clk 0:00:04.4]} 43... Nh4+ {[%clk 0:00:00.2]} 44. Kg3 {[%clk
0:00:04.9]} 44... Nf5+ {[%clk 0:00:00.1]} 45. Kg4 {[%clk 0:00:05]} 1-0

[Event "Late-Titled-Tuesday-Blitz-May-14-2024"]
[Site "Chess.com"]
[Date "2024.05.14"]
[Round "10"]
[White "rasmussvane"]
[Black "artin10862"]
[Result "1-0"]
[WhiteElo "2986"]
[BlackElo "2897"]
[TimeControl "180+1"]
[EndTime "15:54:48 PDT"]
[Termination "rasmussvane won on time"]

1. Nf3 {[%clk 0:03:00.9]} 1... c5 {[%clk 0:02:54.2]} 2. c4 {[%clk 0:03:00.7]}
2... Nf6 {[%clk 0:02:53.9]} 3. Nc3 {[%clk 0:02:58.7]} 3... d5 {[%clk 0:02:50.2]}
4. cxd5 {[%clk 0:02:58.4]} 4... Nxd5 {[%clk 0:02:51.1]} 5. e3 {[%clk 0:02:59]}
5... e6 {[%clk 0:02:48.5]} 6. Bb5+ {[%clk 0:02:48.5]} 6... Nd7 {[%clk
0:02:33.7]} 7. Nxd5 {[%clk 0:02:46.1]} 7... exd5 {[%clk 0:02:33.8]} 8. O-O
{[%clk 0:02:46.5]} 8... a6 {[%clk 0:02:30.9]} 9. Be2 {[%clk 0:02:45.5]} 9... Nf6
{[%clk 0:02:24.5]} 10. b3 {[%clk 0:02:40.9]} 10... Bd6 {[%clk 0:02:22.4]} 11. d4
{[%clk 0:02:37]} 11... cxd4 {[%clk 0:02:19.4]} 12. Qxd4 {[%clk 0:02:29.8]} 12...
O-O {[%clk 0:02:19.2]} 13. Bb2 {[%clk 0:02:30]} 13... Qe7 {[%clk 0:02:17.6]} 14.
Qh4 {[%clk 0:02:21.8]} 14... Be6 {[%clk 0:02:12.9]} 15. Bd3 {[%clk 0:02:12.9]}
15... h6 {[%clk 0:02:10.7]} 16. Rac1 {[%clk 0:02:10]} 16... Rac8 {[%clk
0:02:10.2]} 17. h3 {[%clk 0:01:45.7]} 17... Nd7 {[%clk 0:01:59.3]} 18. Qd4
{[%clk 0:01:41.8]} 18... Nf6 {[%clk 0:01:54.7]} 19. Bb1 {[%clk 0:01:37.8]} 19...
Ba3 {[%clk 0:01:46.7]} 20. Rfd1 {[%clk 0:01:31.3]} 20... Rfd8 {[%clk 0:01:40.2]}
21. Qd2 {[%clk 0:01:14.2]} 21... Ne4 {[%clk 0:01:18.3]} 22. Qe2 {[%clk
0:01:12.6]} 22... Bb4 {[%clk 0:01:14.8]} 23. Nd4 {[%clk 0:01:11.4]} 23... Bd7
{[%clk 0:01:06.8]} 24. Bd3 {[%clk 0:01:04.6]} 24... Nc3 {[%clk 0:00:57.8]} 25.
Bxc3 {[%clk 0:01:03.5]} 25... Bxc3 {[%clk 0:00:58.5]} 26. Bh7+ {[%clk
0:00:57.1]} 26... Kf8 {[%clk 0:00:52.2]} 27. Qd3 {[%clk 0:00:44.3]} 27... Bb2
{[%clk 0:00:36.4]} 28. Rxc8 {[%clk 0:00:35.6]} 28... Rxc8 {[%clk 0:00:37.3]} 29.
Bf5 {[%clk 0:00:36]} 29... Be6 {[%clk 0:00:29.3]} 30. Ne2 {[%clk 0:00:32]} 30...
Bf6 {[%clk 0:00:26.9]} 31. Nf4 {[%clk 0:00:31.4]} 31... Qd7 {[%clk 0:00:21.1]}
32. Bxe6 {[%clk 0:00:25.4]} 32... fxe6 {[%clk 0:00:21.4]} 33. Qh7 {[%clk
0:00:22.4]} 33... Kf7 {[%clk 0:00:17.6]} 34. Qg6+ {[%clk 0:00:21.7]} 34... Kg8
{[%clk 0:00:15]} 35. Nh5 {[%clk 0:00:19.6]} 35... Bb2 {[%clk 0:00:15.1]} 36. e4
{[%clk 0:00:18.3]} 36... Qf7 {[%clk 0:00:10]} 37. Qxf7+ {[%clk 0:00:13.8]} 37...
Kxf7 {[%clk 0:00:10.9]} 38. exd5 {[%clk 0:00:14.7]} 38... exd5 {[%clk
0:00:07.1]} 39. Rxd5 {[%clk 0:00:15.6]} 39... Rc1+ {[%clk 0:00:04.6]} 40. Kh2
{[%clk 0:00:16]} 40... Rc7 {[%clk 0:00:03.4]} 41. Nf4 {[%clk 0:00:13.2]} 41...
Bf6 {[%clk 0:00:03.2]} 42. Kg3 {[%clk 0:00:05.4]} 42... Ke8 {[%clk 0:00:00.8]}
43. Kf3 {[%clk 0:00:05.4]} 43... Rc2 {[%clk 0:00:00.6]} 44. a4 {[%clk
0:00:05.9]} 1-0

[Event "Late-Titled-Tuesday-Blitz-May-14-2024"]
[Site "Chess.com"]
[Date "2024.05.14"]
[Round "10"]
[White "Redzishchess"]
[Black "Bykov_Egor"]
[Result "0-1"]
[WhiteElo "2501"]
[BlackElo "2622"]
[TimeControl "180+1"]
[EndTime "15:54:50 PDT"]
[Termination "Bykov_Egor won on time"]

1. d4 {[%clk 0:03:00.9]} 1... Nf6 {[%clk 0:02:59.7]} 2. c4 {[%clk 0:03:01]} 2...
g6 {[%clk 0:03:00.1]} 3. g3 {[%clk 0:03:01]} 3... Bg7 {[%clk 0:03:00.2]} 4. Bg2
{[%clk 0:03:00.8]} 4... d6 {[%clk 0:03:00.8]} 5. Nc3 {[%clk 0:03:01.2]} 5... O-O
{[%clk 0:03:00.6]} 6. e4 {[%clk 0:03:01.3]} 6... Nc6 {[%clk 0:02:53.5]} 7. Nf3
{[%clk 0:02:56]} 7... Bg4 {[%clk 0:02:45.9]} 8. O-O {[%clk 0:02:53.7]} 8... Nd7
{[%clk 0:02:36.6]} 9. Be3 {[%clk 0:02:18.2]} 9... e5 {[%clk 0:02:35.4]} 10. d5
{[%clk 0:02:13.4]} 10... Nd4 {[%clk 0:02:33.3]} 11. Bxd4 {[%clk 0:01:55.3]}
11... exd4 {[%clk 0:02:32.8]} 12. Nb5 {[%clk 0:01:44.6]} 12... Ne5 {[%clk
0:02:04.6]} 13. Nbxd4 {[%clk 0:01:39.9]} 13... Nxc4 {[%clk 0:01:59.4]} 14. Rc1
{[%clk 0:01:04.6]} 14... Ne5 {[%clk 0:01:51.5]} 15. b3 {[%clk 0:00:49.6]} 15...
Rc8 {[%clk 0:01:34]} 16. h3 {[%clk 0:00:44.1]} 16... Nxf3+ {[%clk 0:01:28.8]}
17. Nxf3 {[%clk 0:00:44.3]} 17... Bd7 {[%clk 0:01:29.3]} 18. Nd4 {[%clk
0:00:37.5]} 18... c5 {[%clk 0:01:18.8]} 19. dxc6 {[%clk 0:00:28.8]} 19... bxc6
{[%clk 0:01:18.5]} 20. Qd2 {[%clk 0:00:25.7]} 20... Qb6 {[%clk 0:01:09.9]} 21.
Rfd1 {[%clk 0:00:22.6]} 21... Rfd8 {[%clk 0:01:07.3]} 22. Ne2 {[%clk 0:00:18.9]}
22... Be8 {[%clk 0:01:00.2]} 23. Nf4 {[%clk 0:00:15.4]} 23... a5 {[%clk
0:00:59.9]} 24. h4 {[%clk 0:00:13.2]} 24... Qb4 {[%clk 0:00:53.2]} 25. Qd3
{[%clk 0:00:09.9]} 25... Be5 {[%clk 0:00:42.1]} 26. h5 {[%clk 0:00:09.6]} 26...
Qb7 {[%clk 0:00:31]} 27. Ne2 {[%clk 0:00:07.9]} 27... Qa7 {[%clk 0:00:23.5]} 28.
Kf1 {[%clk 0:00:04]} 28... a4 {[%clk 0:00:21.9]} 29. f4 {[%clk 0:00:03.5]} 29...
Bg7 {[%clk 0:00:21]} 30. hxg6 {[%clk 0:00:03.9]} 30... hxg6 {[%clk 0:00:20.4]}
31. f5 {[%clk 0:00:04.6]} 31... axb3 {[%clk 0:00:19.7]} 32. axb3 {[%clk
0:00:04.6]} 32... c5 {[%clk 0:00:19.6]} 33. Nf4 {[%clk 0:00:03.6]} 33... Rb8
{[%clk 0:00:19.7]} 34. fxg6 {[%clk 0:00:02.9]} 34... Bb5 {[%clk 0:00:19.3]} 35.
Rc4 {[%clk 0:00:02.5]} 35... fxg6 {[%clk 0:00:18]} 36. Qd5+ {[%clk 0:00:02.3]}
36... Qf7 {[%clk 0:00:18.6]} 37. Kg1 {[%clk 0:00:00.2]} 37... Qxd5 {[%clk
0:00:16.9]} 38. Rxd5 {[%clk 0:00:01.1]} 38... Bxc4 {[%clk 0:00:17.5]} 39. bxc4
{[%clk 0:00:02]} 39... Be5 {[%clk 0:00:16.5]} 40. Nxg6 {[%clk 0:00:02.2]} 40...
Bxg3 {[%clk 0:00:16.7]} 41. Ne7+ {[%clk 0:00:02.5]} 41... Kf7 {[%clk 0:00:16.4]}
42. Nf5 {[%clk 0:00:03.4]} 42... Rb1+ {[%clk 0:00:15.7]} 43. Bf1 {[%clk
0:00:03.1]} 43... Be5 {[%clk 0:00:15.7]} 44. Kg2 {[%clk 0:00:03.6]} 44... Rg8+
{[%clk 0:00:15.7]} 45. Kf2 {[%clk 0:00:04]} 45... Rb2+ {[%clk 0:00:15.2]} 46.
Be2 {[%clk 0:00:04.1]} 46... Rh8 {[%clk 0:00:14.9]} 0-1